[Event "5e festival international d'échecs d'A"]
[Site "Allauch, France"]
[Date "2023.08.30"]
[Round "4.2"]
[White "Petrosyan, Armen"]
[Black "Charvein, Gabriel"]
[Result "1-0"]
[WhiteElo "2360"]
[BlackElo "1993"]
[PlyCount "75"]
[EventDate "2023.??.??"]
[TimeControl "1"]

1. e4 {[%emt 0:00:00]} c5 {[%emt 0:00:00]} 2. Nf3 {[%emt 0:00:00]} e6 {[%emt 0:
00:00]} 3. d4 {[%emt 0:00:00]} cxd4 {[%emt 0:00:00]} 4. Nxd4 {[%emt 0:00:00]}
Nf6 {[%emt 0:00:00]} 5. Nc3 {[%emt 0:00:00]} Nc6 {[%emt 0:00:00]} 6. Nxc6 {
[%emt 0:00:00]} bxc6 {[%emt 0:00:00]} 7. e5 {[%emt 0:00:00]} Nd5 {[%emt 0:00:
00]} 8. Ne4 {[%emt 0:00:00]} Qc7 {[%emt 0:00:00]} 9. f4 {[%emt 0:00:00]} Rb8 {
[%emt 0:00:00]} 10. c4 {[%emt 0:00:00]} Bb4+ {[%emt 0:00:00]} 11. Ke2 {[%emt 0:
00:00]} O-O {[%emt 0:00:00]} 12. cxd5 {[%emt 0:00:00]} cxd5 {[%emt 0:00:00]}
13. Ng5 {[%emt 0:00:00]} f6 {[%emt 0:00:00]} 14. exf6 {[%emt 0:00:00]} Rxf6 {
[%emt 0:00:00]} 15. Qd3 {[%emt 0:00:00]} Rf5 {[%emt 0:00:00]} 16. Kd1 {[%emt 0:
00:00]} Bb7 {[%emt 0:00:00]} 17. Qc2 {[%emt 0:00:00]} Qb6 {[%emt 0:00:00]} 18.
Bd3 {[%emt 0:00:00]} Rxg5 {[%emt 0:00:00]} 19. fxg5 {[%emt 0:00:00]} Qd4 {
[%emt 0:00:00]} 20. Bd2 {[%emt 0:00:00]} Bc6 {[%emt 0:00:00]} 21. Rc1 {[%emt 0:
00:00]} Qg4+ {[%emt 0:00:00]} 22. Be2 {[%emt 0:00:00]} Qxg2 {[%emt 0:00:00]}
23. Rf1 {[%emt 0:00:00]} Bd6 {[%emt 0:00:00]} 24. b3 {[%emt 0:00:00]} d4 {
[%emt 0:00:00]} 25. Qd3 {[%emt 0:00:00]} Qd5 {[%emt 0:00:00]} 26. Rxc6 {
[%emt 0:00:00]} dxc6 {[%emt 0:00:00]} 27. Qh3 {[%emt 0:00:00]} Re8 {[%emt 0:00:
00]} 28. Bd3 {[%emt 0:00:00]} g6 {[%emt 0:00:00]} 29. Re1 {[%emt 0:00:00]} Be5
{[%emt 0:00:00]} 30. Bc4 {[%emt 0:00:00]} Qd6 {[%emt 0:00:00]} 31. Qf3 {
[%emt 0:00:00]} Kg7 {[%emt 0:00:00]} 32. h4 {[%emt 0:00:00]} Rf8 {[%emt 0:00:
00]} 33. Qe4 {[%emt 0:00:00]} Rf5 {[%emt 0:00:00]} 34. h5 {[%emt 0:00:00]} gxh5
{[%emt 0:00:00]} 35. Bd3 {[%emt 0:00:00]} Qf8 {[%emt 0:00:00]} 36. Qxc6 {
[%emt 0:00:00]} Rf2 {[%emt 0:00:00]} 37. Qd7+ {[%emt 0:00:00]} Rf7 {[%emt 0:00:
00]} 38. Qxe6 {[%emt 0:00:00]} 1-0

[Event "5e festival international d'échecs d'A"]
[Site "Allauch, France"]
[Date "2023.08.30"]
[Round "4.3"]
[White "Pinto, Axel"]
[Black "Chaumet, Etienne"]
[Result "1-0"]
[WhiteElo "1837"]
[BlackElo "2075"]
[PlyCount "107"]
[EventDate "2023.??.??"]
[TimeControl "1"]

1. d4 {[%emt 0:00:00]} Nf6 {[%emt 0:00:00]} 2. c4 {[%emt 0:00:00]} e6 {[%emt 0:
00:00]} 3. g3 {[%emt 0:00:00]} d5 {[%emt 0:00:00]} 4. Nf3 {[%emt 0:00:00]} Bb4+
{[%emt 0:00:00]} 5. Bd2 {[%emt 0:00:00]} Be7 {[%emt 0:00:00]} 6. Bg2 {[%emt 0:
00:00]} O-O {[%emt 0:00:00]} 7. O-O {[%emt 0:00:00]} c6 {[%emt 0:00:00]} 8. Qc2
{[%emt 0:00:00]} Nbd7 {[%emt 0:00:00]} 9. Bf4 {[%emt 0:00:00]} b6 {[%emt 0:00:
00]} 10. Nbd2 {[%emt 0:00:00]} Bb7 {[%emt 0:00:00]} 11. e4 {[%emt 0:00:00]}
dxe4 {[%emt 0:00:00]} 12. Nxe4 {[%emt 0:00:00]} c5 {[%emt 0:00:00]} 13. Nd6 {
[%emt 0:00:00]} Bc6 {[%emt 0:00:00]} 14. dxc5 {[%emt 0:00:00]} bxc5 {[%emt 0:
00:00]} 15. Rad1 {[%emt 0:00:00]} Qb6 {[%emt 0:00:00]} 16. Rd2 {[%emt 0:00:00]}
Rad8 {[%emt 0:00:00]} 17. Rfd1 {[%emt 0:00:00]} h6 {[%emt 0:00:00]} 18. h4 {
[%emt 0:00:00]} Nh5 {[%emt 0:00:00]} 19. Be3 {[%emt 0:00:00]} Ndf6 {[%emt 0:00:
00]} 20. Nb5 {[%emt 0:00:00]} Ng4 {[%emt 0:00:00]} 21. Rxd8 {[%emt 0:00:00]}
Rxd8 {[%emt 0:00:00]} 22. Rxd8+ {[%emt 0:00:00]} Bxd8 {[%emt 0:00:00]} 23. Bd2
{[%emt 0:00:00]} Bxb5 {[%emt 0:00:00]} 24. cxb5 {[%emt 0:00:00]} c4 {[%emt 0:
00:00]} 25. Bc3 {[%emt 0:00:00]} Bf6 {[%emt 0:00:00]} 26. Bxf6 {[%emt 0:00:00]}
Nhxf6 {[%emt 0:00:00]} 27. a4 {[%emt 0:00:00]} Nd5 {[%emt 0:00:00]} 28. Bh3 {
[%emt 0:00:00]} Ndf6 {[%emt 0:00:00]} 29. Bxg4 {[%emt 0:00:00]} Nxg4 {[%emt 0:
00:00]} 30. Qe2 {[%emt 0:00:00]} Qc5 {[%emt 0:00:00]} 31. Nd2 {[%emt 0:00:00]}
Ne5 {[%emt 0:00:00]} 32. Qe3 {[%emt 0:00:00]} Qb4 {[%emt 0:00:00]} 33. Qxe5 {
[%emt 0:00:00]} Qxd2 {[%emt 0:00:00]} 34. Qc3 {[%emt 0:00:00]} Qd1+ {[%emt 0:
00:00]} 35. Kg2 {[%emt 0:00:00]} Qxa4 {[%emt 0:01:10]} 36. Qe5 {[%emt 0:00:00]}
Kh7 {[%emt 0:00:00]} 37. Qe4+ {[%emt 0:00:00]} f5 {[%emt 0:00:00]} 38. Qe5 {
[%emt 0:00:00]} a6 {[%emt 0:00:00]} 39. bxa6 {[%emt 0:00:00]} Qxa6 {[%emt 0:00:
00]} 40. Qc3 {[%emt 0:00:00]} Qc6+ {[%emt 0:00:00]} 41. Kg1 {[%emt 0:00:00]}
Qd5 {[%emt 0:00:00]} 42. Kf1 {[%emt 0:00:00]} e5 {[%emt 0:00:00]} 43. Ke2 {
[%emt 0:00:00]} e4 {[%emt 0:00:00]} 44. Ke1 {[%emt 0:00:00]} Qd3 {[%emt 0:00:
00]} 45. Qe5 {[%emt 0:00:00]} Qd7 {[%emt 0:00:00]} 46. g4 {[%emt 0:00:00]} g6 {
[%emt 0:00:00]} 47. h5 {[%emt 0:00:00]} Qf7 {[%emt 0:00:00]} 48. hxg6+ {
[%emt 0:00:00]} Kxg6 {[%emt 0:00:00]} 49. gxf5+ {[%emt 0:00:00]} Qxf5 {[%emt 0:
00:00]} 50. Qe8+ {[%emt 0:00:00]} Kg7 {[%emt 0:00:00]} 51. Qe7+ {[%emt 0:00:00]
} Kg6 {[%emt 0:00:00]} 52. Qe8+ {[%emt 0:00:00]} Kg5 {[%emt 0:00:00]} 53. Qg8+
{[%emt 0:00:00]} Kf4 {[%emt 0:00:00]} 54. Qg3# {[%emt 0:00:10]} 1-0

[Event "5e festival international d'échecs d'A"]
[Site "Allauch, France"]
[Date "2023.08.30"]
[Round "4.5"]
[White "Goncalves, Maxim"]
[Black "Toth, Kincso"]
[Result "0-1"]
[WhiteElo "1777"]
[BlackElo "1709"]
[PlyCount "56"]
[EventDate "2023.??.??"]
[TimeControl "1"]

1. d4 {[%emt 0:00:00]} Nf6 {[%emt 0:00:00]} 2. g3 {[%emt 0:00:00]} d6 {[%emt 0:
00:00]} 3. Bg2 {[%emt 0:00:00]} Nbd7 {[%emt 0:00:00]} 4. Nf3 {[%emt 0:00:00]}
e5 {[%emt 0:00:00]} 5. O-O {[%emt 0:00:00]} Be7 {[%emt 0:00:00]} 6. c4 {
[%emt 0:00:00]} c6 {[%emt 0:00:00]} 7. Nc3 {[%emt 0:00:00]} a6 {[%emt 0:00:00]}
8. Qc2 {[%emt 0:00:00]} Rb8 {[%emt 0:00:00]} 9. Rd1 {[%emt 0:00:00]} Qc7 {
[%emt 0:00:00]} 10. b3 {[%emt 0:00:00]} O-O {[%emt 0:00:00]} 11. Bb2 {[%emt 0:
00:00]} Re8 {[%emt 0:00:00]} 12. Rac1 {[%emt 0:00:00]} Bf8 {[%emt 0:00:00]} 13.
dxe5 {[%emt 0:00:00]} dxe5 {[%emt 0:00:00]} 14. Ne4 {[%emt 0:00:00]} g6 {
[%emt 0:00:00]} 15. Rd2 {[%emt 0:00:00]} Nxe4 {[%emt 0:00:00]} 16. Qxe4 {
[%emt 0:00:00]} Bh6 {[%emt 0:00:00]} 17. e3 {[%emt 0:00:00]} Bg7 {[%emt 0:00:
00]} 18. Ba3 {[%emt 0:00:00]} Nf6 {[%emt 0:00:00]} 19. Qh4 {[%emt 0:00:00]} e4
{[%emt 0:00:00]} 20. Bd6 {[%emt 0:00:00]} Qa5 {[%emt 0:00:00]} 21. Rcd1 {
[%emt 0:00:00]} exf3 {[%emt 0:00:00]} 22. Bxb8 {[%emt 0:00:00]} fxg2 {[%emt 0:
00:00]} 23. Kxg2 {[%emt 0:00:00]} h6 {[%emt 0:00:00]} 24. Qf4 {[%emt 0:00:00]}
Ne4 {[%emt 0:00:00]} 25. Rc2 {[%emt 0:00:00]} Bh3+ {[%emt 0:00:00]} 26. Kg1 {
[%emt 0:00:00]} g5 {[%emt 0:00:00]} 27. Qc7 {[%emt 0:01:06]} Qf5 {[%emt 0:00:
00]} 28. f4 {[%emt 0:00:00]} Nxg3 {[%emt 0:00:00]} 0-1

[Event "5e festival international d'échecs d'A"]
[Site "Allauch, France"]
[Date "2023.08.30"]
[Round "4.6"]
[White "Personne, Solene"]
[Black "Hoang Villemagne, Mathieu"]
[Result "0-1"]
[WhiteElo "1542"]
[BlackElo "1350"]
[PlyCount "48"]
[EventDate "2023.??.??"]
[TimeControl "1"]

1. e4 {[%emt 0:00:00]} e5 {[%emt 0:00:00]} 2. Nf3 {[%emt 0:00:00]} Nc6 {
[%emt 0:00:00]} 3. d4 {[%emt 0:00:00]} exd4 {[%emt 0:00:00]} 4. Bc4 {[%emt 0:
00:00]} Bc5 {[%emt 0:00:00]} 5. Ng5 {[%emt 0:00:00]} Nh6 {[%emt 0:00:00]} 6.
Nxf7 {[%emt 0:00:00]} Nxf7 {[%emt 0:00:00]} 7. Bxf7+ {[%emt 0:00:00]} Kxf7 {
[%emt 0:00:00]} 8. Qh5+ {[%emt 0:00:00]} g6 {[%emt 0:00:00]} 9. Qxc5 {[%emt 0:
00:00]} d5 {[%emt 0:00:00]} 10. O-O {[%emt 0:00:00]} dxe4 {[%emt 0:00:00]} 11.
c3 {[%emt 0:00:00]} Qd6 {[%emt 0:00:00]} 12. Qc4+ {[%emt 0:00:00]} Be6 {
[%emt 0:00:00]} 13. Qe2 {[%emt 0:00:00]} Bd5 {[%emt 0:00:00]} 14. cxd4 {
[%emt 0:00:00]} Nxd4 {[%emt 0:00:00]} 15. Qd2 {[%emt 0:00:00]} c5 {[%emt 0:00:
00]} 16. b4 {[%emt 0:00:00]} Bc4 {[%emt 0:00:00]} 17. bxc5 {[%emt 0:00:00]}
Qxc5 {[%emt 0:00:00]} 18. Re1 {[%emt 0:00:00]} Ne2+ {[%emt 0:00:00]} 19. Kh1 {
[%emt 0:00:00]} Rad8 {[%emt 0:00:00]} 20. Qc2 {[%emt 0:00:00]} b5 {[%emt 0:00:
00]} 21. Be3 {[%emt 0:00:00]} Qe5 {[%emt 0:00:00]} 22. Nd2 {[%emt 0:00:00]} Rd5
{[%emt 0:00:00]} 23. Nxc4 {[%emt 0:00:00]} Qxh2+ {[%emt 0:00:00]} 24. Kxh2 {
[%emt 0:00:14]} Rh5# {[%emt 0:00:03]} 0-1

[Event "5e festival international d'échecs d'A"]
[Site "Allauch, France"]
[Date "2023.08.30"]
[Round "4.7"]
[White "Bonchristiani, Pierre"]
[Black "Proud'Hon, Gabriel"]
[Result "1/2-1/2"]
[WhiteElo "1416"]
[BlackElo "1340"]
[PlyCount "103"]
[EventDate "2023.??.??"]
[TimeControl "1"]

1. e4 {[%emt 0:00:00]} c5 {[%emt 0:00:00]} 2. Nf3 {[%emt 0:00:00]} d6 {[%emt 0:
00:00]} 3. Bb5+ {[%emt 0:00:00]} Nd7 {[%emt 0:00:00]} 4. c4 {[%emt 0:00:00]}
Ngf6 {[%emt 0:00:00]} 5. Nc3 {[%emt 0:00:00]} g6 {[%emt 0:00:00]} 6. d4 {
[%emt 0:00:00]} cxd4 {[%emt 0:00:00]} 7. Nxd4 {[%emt 0:00:00]} Bg7 {[%emt 0:00:
00]} 8. f3 {[%emt 0:00:00]} O-O {[%emt 0:00:00]} 9. Be3 {[%emt 0:00:00]} Nb6 {
[%emt 0:00:00]} 10. Qd2 {[%emt 0:00:00]} a6 {[%emt 0:00:00]} 11. Ba4 {[%emt 0:
00:00]} Nxc4 {[%emt 0:00:00]} 12. Qe2 {[%emt 0:00:00]} Nxe3 {[%emt 0:00:00]}
13. Qxe3 {[%emt 0:00:00]} b5 {[%emt 0:00:00]} 14. Bb3 {[%emt 0:00:00]} Bb7 {
[%emt 0:00:00]} 15. O-O-O {[%emt 0:00:00]} Nd7 {[%emt 0:00:00]} 16. h4 {
[%emt 0:00:00]} Nc5 {[%emt 0:00:00]} 17. Bc2 {[%emt 0:00:00]} Rc8 {[%emt 0:00:
00]} 18. h5 {[%emt 0:00:00]} b4 {[%emt 0:00:00]} 19. Nce2 {[%emt 0:00:00]} Qb6
{[%emt 0:00:00]} 20. b3 {[%emt 0:00:00]} Qa5 {[%emt 0:00:00]} 21. Kb1 {[%emt 0:
00:00]} Qa3 {[%emt 0:00:00]} 22. hxg6 {[%emt 0:00:00]} fxg6 {[%emt 0:00:00]}
23. Rh3 {[%emt 0:03:41]} Na4 {[%emt 0:00:00]} 24. Qc1 {[%emt 0:00:00]} Qxc1+ {
[%emt 0:00:00]} 25. Rxc1 {[%emt 0:00:00]} Nc3+ {[%emt 0:00:00]} 26. Nxc3 {
[%emt 0:00:00]} Bxd4 {[%emt 0:00:00]} 27. Ne2 {[%emt 0:00:00]} Be3 {[%emt 0:00:
00]} 28. Rch1 {[%emt 0:00:00]} Rf7 {[%emt 0:00:00]} 29. Bd3 {[%emt 0:00:00]} e6
{[%emt 0:00:00]} 30. f4 {[%emt 0:00:00]} Bb6 {[%emt 0:00:00]} 31. Ng3 {[%emt 0:
00:00]} Rcc7 {[%emt 0:00:00]} 32. f5 {[%emt 0:00:00]} gxf5 {[%emt 0:00:00]} 33.
exf5 {[%emt 0:00:00]} Bxg2 {[%emt 0:00:00]} 34. fxe6 {[%emt 0:00:00]} Rfe7 {
[%emt 0:00:00]} 35. Nf5 {[%emt 0:00:00]} Bxh3 {[%emt 0:00:00]} 36. Nxe7+ {
[%emt 0:00:00]} Rxe7 {[%emt 0:00:00]} 37. Rxh3 {[%emt 0:00:00]} d5 {[%emt 0:00:
00]} 38. Bf5 {[%emt 0:00:00]} Rg7 {[%emt 0:00:00]} 39. Bxh7+ {[%emt 0:00:00]}
Kf8 {[%emt 0:00:00]} 40. Rh1 {[%emt 0:00:00]} Ke7 {[%emt 0:00:00]} 41. Bf5 {
[%emt 0:00:00]} Kf6 {[%emt 0:00:00]} 42. Rf1 {[%emt 0:00:00]} Rg1 {[%emt 0:00:
00]} 43. Rxg1 {[%emt 0:00:00]} Bxg1 {[%emt 0:00:00]} 44. Bh3 {[%emt 0:00:00]}
Bc5 {[%emt 0:00:00]} 45. Kc2 {[%emt 0:00:00]} Ke5 {[%emt 0:00:00]} 46. Kd3 {
[%emt 0:00:00]} a5 {[%emt 0:00:00]} 47. Bg4 {[%emt 0:00:00]} Kf4 {[%emt 0:00:
00]} 48. Bh5 {[%emt 0:00:00]} Ke5 {[%emt 0:00:39]} 49. Bf7 {[%emt 0:00:00]} Be7
{[%emt 0:00:00]} 50. Bg8 {[%emt 0:00:00]} Kd6 {[%emt 0:00:00]} 51. Bf7 {
[%emt 0:00:00]} Kc5 {[%emt 0:00:00]} 52. Be8 {[%emt 0:00:00]} 1/2-1/2

[Event "5e festival international d'échecs d'A"]
[Site "Allauch, France"]
[Date "2023.08.30"]
[Round "4.8"]
[White "Touzet, Cassien"]
[Black "Omelchenko, Danila"]
[Result "1/2-1/2"]
[WhiteElo "1389"]
[BlackElo "1199"]
[PlyCount "120"]
[EventDate "2023.??.??"]
[TimeControl "1"]

1. e4 {[%emt 0:00:00]} Nf6 {[%emt 0:00:00]} 2. Nc3 {[%emt 0:00:00]} d5 {
[%emt 0:00:00]} 3. exd5 {[%emt 0:00:00]} Nxd5 {[%emt 0:00:00]} 4. Bc4 {[%emt 0:
00:00]} Nb6 {[%emt 0:00:00]} 5. Bb3 {[%emt 0:00:00]} c5 {[%emt 0:00:00]} 6. d3
{[%emt 0:00:00]} Nc6 {[%emt 0:00:00]} 7. Nf3 {[%emt 0:00:00]} e5 {[%emt 0:00:
00]} 8. Ng5 {[%emt 0:00:00]} c4 {[%emt 0:00:00]} 9. dxc4 {[%emt 0:00:00]} Qxd1+
{[%emt 0:00:00]} 10. Nxd1 {[%emt 0:00:00]} Nd4 {[%emt 0:00:00]} 11. Be3 {
[%emt 0:00:00]} Nxb3 {[%emt 0:00:00]} 12. cxb3 {[%emt 0:00:00]} f6 {[%emt 0:00:
00]} 13. Nf3 {[%emt 0:00:00]} Bg4 {[%emt 0:00:00]} 14. Nc3 {[%emt 0:00:00]} Bb4
{[%emt 0:00:00]} 15. O-O {[%emt 0:00:00]} Bxf3 {[%emt 0:00:00]} 16. gxf3 {
[%emt 0:00:00]} f5 {[%emt 0:00:00]} 17. Bxb6 {[%emt 0:00:00]} Bxc3 {[%emt 0:00:
00]} 18. bxc3 {[%emt 0:00:00]} axb6 {[%emt 0:00:00]} 19. Rfe1 {[%emt 0:00:00]}
Ra5 {[%emt 0:00:00]} 20. b4 {[%emt 0:00:00]} Ra3 {[%emt 0:00:00]} 21. Rxe5+ {
[%emt 0:00:00]} Kd7 {[%emt 0:00:00]} 22. Rxf5 {[%emt 0:00:00]} g6 {[%emt 0:00:
00]} 23. Rd1+ {[%emt 0:00:00]} Kc8 {[%emt 0:00:00]} 24. Rb5 {[%emt 0:00:00]}
Rxc3 {[%emt 0:00:00]} 25. c5 {[%emt 0:00:00]} bxc5 {[%emt 0:00:00]} 26. Rxc5+ {
[%emt 0:00:00]} Rxc5 {[%emt 0:00:00]} 27. bxc5 {[%emt 0:00:00]} Kc7 {[%emt 0:
00:00]} 28. Kg2 {[%emt 0:00:00]} Kc6 {[%emt 0:00:00]} 29. Rc1 {[%emt 0:00:00]}
Ra8 {[%emt 0:00:00]} 30. Rc2 {[%emt 0:00:00]} Kd5 {[%emt 0:00:00]} 31. Kg3 {
[%emt 0:00:00]} Ke5 {[%emt 0:00:00]} 32. Rb2 {[%emt 0:00:00]} Ra7 {[%emt 0:00:
00]} 33. Kg4 {[%emt 0:00:00]} h6 {[%emt 0:00:00]} 34. f4+ {[%emt 0:00:00]} Kf6
{[%emt 0:00:00]} 35. Rb6+ {[%emt 0:00:00]} Kf7 {[%emt 0:00:00]} 36. h4 {
[%emt 0:00:00]} Rxa2 {[%emt 0:00:00]} 37. Rxb7+ {[%emt 0:00:00]} Kf6 {[%emt 0:
00:00]} 38. Rb6+ {[%emt 0:00:00]} Kg7 {[%emt 0:00:00]} 39. f3 {[%emt 0:00:00]}
h5+ {[%emt 0:00:00]} 40. Kg3 {[%emt 0:00:00]} Rc2 {[%emt 0:00:00]} 41. Rc6 {
[%emt 0:00:00]} Kf7 {[%emt 0:00:00]} 42. f5 {[%emt 0:00:00]} gxf5 {[%emt 0:00:
00]} 43. Kf4 {[%emt 0:00:00]} Rc3 {[%emt 0:00:00]} 44. Kxf5 {[%emt 0:00:00]}
Rxf3+ {[%emt 0:00:00]} 45. Kg5 {[%emt 0:00:00]} Ke7 {[%emt 0:00:00]} 46. Kxh5 {
[%emt 0:00:37]} Kd7 {[%emt 0:00:00]} 47. Rg6 {[%emt 0:00:00]} Rf5+ {[%emt 0:00:
00]} 48. Rg5 {[%emt 0:00:00]} Rf6 {[%emt 0:00:00]} 49. Rg7+ {[%emt 0:00:00]}
Ke8 {[%emt 0:00:00]} 50. Kg4 {[%emt 0:00:00]} Rc6 {[%emt 0:00:00]} 51. Rg5 {
[%emt 0:00:00]} Kf7 {[%emt 0:00:00]} 52. h5 {[%emt 0:00:00]} Kf8 {[%emt 0:00:
00]} 53. Re5 {[%emt 0:00:00]} Kf7 {[%emt 0:00:00]} 54. Kf4 {[%emt 0:00:00]} Kg7
{[%emt 0:00:00]} 55. Ke4 {[%emt 0:00:00]} Kf6 {[%emt 0:00:00]} 56. Kd5 {
[%emt 0:00:00]} Rxc5+ {[%emt 0:00:17]} 57. Kxc5 {[%emt 0:00:00]} Kxe5 {[%emt 0:
00:00]} 58. h6 {[%emt 0:00:00]} Kf6 {[%emt 0:00:00]} 59. h7 {[%emt 0:00:00]}
Kg7 {[%emt 0:00:00]} 60. h8=Q+ {[%emt 0:00:00]} Kxh8 {[%emt 0:00:00]} 1/2-1/2

[Event "5e festival international d'échecs d'A"]
[Site "Allauch, France"]
[Date "2023.08.30"]
[Round "5.1"]
[White "Petrosyan, Armen"]
[Black "Derige Kane, Yan"]
[Result "1-0"]
[WhiteElo "2360"]
[BlackElo "2162"]
[PlyCount "55"]
[EventDate "2023.??.??"]
[TimeControl "1"]

1. e4 {[%emt 0:00:00]} c6 {[%emt 0:00:00]} 2. d4 {[%emt 0:00:00]} d5 {[%emt 0:
00:00]} 3. e5 {[%emt 0:00:00]} Bf5 {[%emt 0:00:00]} 4. Nf3 {[%emt 0:00:00]} e6
{[%emt 0:00:00]} 5. Be2 {[%emt 0:00:00]} c5 {[%emt 0:00:00]} 6. Be3 {[%emt 0:
00:00]} Qb6 {[%emt 0:00:00]} 7. Nc3 {[%emt 0:00:00]} Qxb2 {[%emt 0:00:00]} 8.
Qb1 {[%emt 0:00:00]} Qxc2 {[%emt 0:00:00]} 9. Qb5+ {[%emt 0:00:00]} Nd7 {
[%emt 0:00:00]} 10. Rc1 {[%emt 0:00:00]} a6 {[%emt 0:00:00]} 11. Qxb7 {[%emt 0:
00:00]} Rb8 {[%emt 0:00:00]} 12. Qxb8+ {[%emt 0:00:00]} Nxb8 {[%emt 0:00:00]}
13. Rxc2 {[%emt 0:00:00]} Bxc2 {[%emt 0:00:00]} 14. dxc5 {[%emt 0:00:00]} Ne7 {
[%emt 0:00:00]} 15. Nd4 {[%emt 0:00:00]} Bg6 {[%emt 0:00:00]} 16. f4 {[%emt 0:
00:00]} Nc8 {[%emt 0:00:00]} 17. f5 {[%emt 0:00:00]} exf5 {[%emt 0:00:00]} 18.
c6 {[%emt 0:00:00]} Bc5 {[%emt 0:00:00]} 19. c7 {[%emt 0:00:00]} Nd7 {[%emt 0:
00:00]} 20. Bxa6 {[%emt 0:00:00]} O-O {[%emt 0:00:00]} 21. Nc6 {[%emt 0:00:00]}
Bxe3 {[%emt 0:00:00]} 22. Nxd5 {[%emt 0:00:00]} Ncb6 {[%emt 0:00:00]} 23. Nxe3
{[%emt 0:00:00]} Kh8 {[%emt 0:00:00]} 24. Nd5 {[%emt 0:00:00]} f4 {[%emt 0:00:
00]} 25. Nb8 {[%emt 0:00:00]} Nxb8 {[%emt 0:00:00]} 26. Nxb6 {[%emt 0:00:00]}
Bf5 {[%emt 0:00:00]} 27. Bb7 {[%emt 0:00:00]} Re8 {[%emt 0:00:00]} 28. O-O {
[%emt 0:00:00]} 1-0

[Event "5e festival international d'échecs d'A"]
[Site "Allauch, France"]
[Date "2023.08.30"]
[Round "5.3"]
[White "Moncamp, Gilles"]
[Black "Massardo, Quentin"]
[Result "1/2-1/2"]
[WhiteElo "2103"]
[BlackElo "1990"]
[PlyCount "56"]
[EventDate "2023.??.??"]
[TimeControl "1"]

1. e4 {[%emt 0:00:00]} e5 {[%emt 0:00:00]} 2. Nf3 {[%emt 0:00:00]} Nf6 {
[%emt 0:00:00]} 3. Nxe5 {[%emt 0:00:00]} d6 {[%emt 0:00:00]} 4. Nf3 {[%emt 0:
00:00]} Nxe4 {[%emt 0:00:00]} 5. Nc3 {[%emt 0:00:00]} Nxc3 {[%emt 0:00:00]} 6.
dxc3 {[%emt 0:00:00]} Be7 {[%emt 0:00:00]} 7. Be3 {[%emt 0:00:00]} c5 {[%emt 0:
00:00]} 8. Bc4 {[%emt 0:00:00]} Nc6 {[%emt 0:00:00]} 9. Qd2 {[%emt 0:00:00]}
O-O {[%emt 0:00:00]} 10. h4 {[%emt 0:00:00]} Rb8 {[%emt 0:00:00]} 11. h5 {
[%emt 0:00:00]} b5 {[%emt 0:00:00]} 12. Bd5 {[%emt 0:00:00]} Ne5 {[%emt 0:00:
00]} 13. Nxe5 {[%emt 0:00:00]} dxe5 {[%emt 0:00:00]} 14. h6 {[%emt 0:00:00]} g6
{[%emt 0:00:00]} 15. O-O {[%emt 0:00:00]} Rb6 {[%emt 0:00:00]} 16. Bf3 {
[%emt 0:00:00]} Qxd2 {[%emt 0:00:00]} 17. Bxd2 {[%emt 0:00:00]} g5 {[%emt 0:00:
00]} 18. Rfe1 {[%emt 0:00:00]} f6 {[%emt 0:00:00]} 19. Be3 {[%emt 0:00:00]} Bb7
{[%emt 0:00:00]} 20. Bxb7 {[%emt 0:00:00]} Rxb7 {[%emt 0:00:00]} 21. Rad1 {
[%emt 0:00:00]} Kf7 {[%emt 0:00:00]} 22. Rd5 {[%emt 0:00:00]} Ke6 {[%emt 0:00:
00]} 23. Red1 {[%emt 0:00:00]} Rc8 {[%emt 0:00:00]} 24. g4 {[%emt 0:00:00]} Rc6
{[%emt 0:00:00]} 25. Kg2 {[%emt 0:00:00]} Rd6 {[%emt 0:00:00]} 26. Rxd6+ {
[%emt 0:00:00]} Bxd6 {[%emt 0:00:00]} 27. Kf3 {[%emt 0:00:00]} c4 {[%emt 0:00:
00]} 28. Ke4 {[%emt 0:00:00]} a6 {[%emt 0:00:00]} 1/2-1/2

[Event "5e festival international d'échecs d'A"]
[Site "Allauch, France"]
[Date "2023.08.30"]
[Round "5.4"]
[White "Figier, Anthony"]
[Black "Metras, Dominique"]
[Result "1-0"]
[WhiteElo "1991"]
[BlackElo "1767"]
[PlyCount "69"]
[EventDate "2023.??.??"]
[TimeControl "1"]

1. d4 {[%emt 0:00:00]} Nf6 {[%emt 0:00:00]} 2. c4 {[%emt 0:00:00]} g6 {[%emt 0:
00:00]} 3. Nf3 {[%emt 0:00:00]} Bg7 {[%emt 0:00:00]} 4. Nc3 {[%emt 0:00:00]} d5
{[%emt 0:00:00]} 5. Bg5 {[%emt 0:00:00]} Ne4 {[%emt 0:00:00]} 6. Bf4 {[%emt 0:
00:00]} Nxc3 {[%emt 0:00:00]} 7. bxc3 {[%emt 0:00:00]} dxc4 {[%emt 0:00:00]} 8.
Qa4+ {[%emt 0:00:00]} Nd7 {[%emt 0:00:00]} 9. Qxc4 {[%emt 0:00:00]} c6 {
[%emt 0:00:00]} 10. e3 {[%emt 0:00:00]} O-O {[%emt 0:00:00]} 11. Be2 {[%emt 0:
00:00]} Qa5 {[%emt 0:00:00]} 12. O-O {[%emt 0:00:00]} Nb6 {[%emt 0:00:00]} 13.
Qb3 {[%emt 0:00:00]} Nd5 {[%emt 0:00:00]} 14. Rac1 {[%emt 0:00:00]} Nxf4 {
[%emt 0:00:00]} 15. exf4 {[%emt 0:00:00]} b5 {[%emt 0:00:00]} 16. Ne5 {[%emt 0:
00:00]} Bxe5 {[%emt 0:00:00]} 17. fxe5 {[%emt 0:00:00]} Be6 {[%emt 0:00:00]}
18. c4 {[%emt 0:00:00]} Rfd8 {[%emt 0:00:00]} 19. Rfd1 {[%emt 0:00:00]} a6 {
[%emt 0:00:00]} 20. h4 {[%emt 0:00:00]} Rab8 {[%emt 0:00:00]} 21. Qc2 {[%emt 0:
00:00]} Rbc8 {[%emt 0:00:00]} 22. h5 {[%emt 0:00:00]} Kg7 {[%emt 0:00:00]} 23.
Qb2 {[%emt 0:00:00]} Rb8 {[%emt 0:00:00]} 24. Qa1 {[%emt 0:00:00]} Qa4 {
[%emt 0:00:00]} 25. Qc3 {[%emt 0:00:00]} b4 {[%emt 0:00:00]} 26. Qb3 {[%emt 0:
00:00]} Qa5 {[%emt 0:00:00]} 27. Bf3 {[%emt 0:00:00]} Qb6 {[%emt 0:00:00]} 28.
d5 {[%emt 0:00:00]} cxd5 {[%emt 0:00:00]} 29. cxd5 {[%emt 0:00:00]} Bd7 {
[%emt 0:00:00]} 30. Qb2 {[%emt 0:00:00]} e6 {[%emt 0:00:00]} 31. d6 {[%emt 0:
00:00]} Rdc8 {[%emt 0:00:00]} 32. Qd2 {[%emt 0:00:00]} h6 {[%emt 0:00:00]} 33.
hxg6 {[%emt 0:00:00]} fxg6 {[%emt 0:00:00]} 34. Rc7 {[%emt 0:00:00]} Qb5 {
[%emt 0:00:00]} 35. Rdc1 {[%emt 0:00:00]} 1-0